fUST/lending_fUST_20250723
["ID","MTS","AMOUNT","RATE_DAILY","PERIOD"]
[374372903,1753281045465,-500.0,0.0002274,2]
[374372904,1753281045475,-13816.08063165,0.0002278,7]
[374372905,1753281045484,-519.22,0.0002281,4]
[374372906,1753281045493,-934.3,0.00022828,6]
[374372907,1753281045503,-519.22,0.0002291,3]
[374372908,1753281045512,-279.920897,0.00022918,2]
[374372909,1753281045521,-1486.80452485,0.00022929,2]
[374372910,1753281045531,-1000.0,0.00022984,2]
[374372911,1753281045540,-26774.05034641,0.00023,4]
[374372912,1753281045549,-160.0,0.00023,2]
[374372913,1753281045559,-519.22,0.0002301,2]
[374372914,1753281045569,-210.17900613,0.00023013,2]
[374372915,1753281045579,-460.0,0.00023013,2]
[374372916,1753281045589,-4111.37,0.00023013,2]
[374372917,1753281045598,-1684.65,0.00023013,2]
[374372918,1753281045607,-773.6,0.00023013,2]
[374372919,1753281045617,-460.0,0.00023013,2]
[374372920,1753281045626,-521.75,0.00023013,2]
[374372921,1753281045636,-584.7,0.00023013,2]
[374372922,1753281045646,-715.59,0.00023013,2]
[374372923,1753281045655,-249.80653331,0.00023013,2]
[374372924,1753281045665,-658.85,0.00023013,2]
[374372925,1753281045674,-692.0,0.00023013,2]
[374372926,1753281045687,-670.81,0.00023013,2]
[374372927,1753281045696,-279.920897,0.00023053,6]
[374372929,1753281045706,-519.22,0.0002311,2]
[374372931,1753281045715,-160.0,0.0002311,3]
[374372932,1753281045725,-934.3,0.00023152,6]
[374372933,1753281045735,-560.0,0.00023162,2]
[374372934,1753281045744,-238.70422882,0.00023175,2]
[374372935,1753281045754,-519.22,0.0002321,4]
[374372936,1753281045764,-460.0,0.00023287,2]
[374372937,1753281045773,-4111.37,0.00023287,2]
[374372938,1753281045783,-1684.65,0.00023287,2]
[374372939,1753281045793,-773.6,0.00023287,2]
[374372940,1753281045802,-460.0,0.00023287,2]
[374372941,1753281045811,-521.75,0.00023287,2]
[374372942,1753281045821,-584.7,0.00023287,2]
[374372943,1753281045830,-715.59,0.00023287,2]
[374372944,1753281045840,-7.42531566,0.00023287,2]
[374372945,1753281045858,-532.83477074,0.00023287,2]
[374372946,1753281046082,-118.5899136,0.00023287,2]
[374372947,1753281046091,-692.0,0.00023287,2]
[374372948,1753281046101,-670.81,0.00023287,2]
[374372949,1753281046111,-14.05532998,0.00023288,2]
[374372950,1753281046538,-185.28076678,0.00023288,2]
[374372951,1753281046550,-800.66390324,0.00023288,2]
[374372952,1753281046559,-296.52299125,0.0002331,3]
[374372953,1753281046571,-222.69700875,0.0002331,3]
[374372954,1753281046580,-286.16591143,0.000234,2]
[374372959,1753281247808,5000.0,0.0001811,7]
[374372960,1753281275594,-5000.0,0.00017099,2]
[374372961,1753281275615,-299.97143661,0.00017272,2]
[374372964,1753281303220,23963.12714079,0.00016701,2]
[374372966,1753281374986,379.0,0.00026027,120]
[374372971,1753281468719,5000.0,0.0001811,7]
[374372974,1753281553938,168.79147188,0.000222,69]
[374372975,1753281558895,168.79147186,0.000222,69]
[374372976,1753281563896,168.79147186,0.000222,69]
[374372978,1753281628229,-150.0,0.00016895,2]
[374372979,1753281679511,5000.0,0.00016781,2]
[374372981,1753281695100,5000.0,0.00016781,2]
[374372983,1753281711946,5000.0,0.00016781,2]
[374372984,1753281730933,5000.0,0.00016781,2]
[374372993,1753281826445,-74.97857746,0.00016895,2]
[374372994,1753281826467,-9122.84712565,0.00017416,2]
[374372995,1753281826490,-9122.84712565,0.0001745,2]
[374372996,1753281826512,-499.78782791,0.0001745,2]
[374372997,1753281826534,-9122.84712565,0.00017483,2]
[374372998,1753281826555,-9122.84712565,0.00017517,2]
[374372999,1753281826579,-9094.84509203,0.0001755,2]
[374373003,1753281935360,-269.97429295,0.00017184,2]
[374373004,1753281935380,-1910.399388,0.00017383,2]
[374373005,1753281935400,-220.62631905,0.00017417,2]
[374373006,1753282005037,-161.19086039,0.00017288,2]
[374373007,1753282005059,-1200.0,0.00017387,2]
[374373008,1753282005081,-10016.7052053,0.00017388,2]
[374373009,1753282005104,-148.10393431,0.00017417,2]
[374373010,1753282019138,168.79147186,0.000222,69]
[374373011,1753282025159,-3.51387964,0.00017417,2]
[374373012,1753282025181,-149.07642654,0.00017614,2]
[374373013,1753282049145,-156.47206113,0.00017613,2]
[374373014,1753282049181,-92.61701355,0.00017713,2]
[374373023,1753282096546,440.356289,0.00013699,2]
[374373026,1753282161111,-300.0,0.00017713,2]
[374373027,1753282161132,-300.0,0.00017714,2]
[374373028,1753282161153,-300.0,0.00017714,2]
[374373029,1753282161174,-1200.0,0.00017714,2]
[374373030,1753282161194,-300.0,0.00017714,2]
[374373031,1753282161219,-500.0,0.00017715,2]
[374373032,1753282161242,-500.0,0.00017715,2]
[374373033,1753282161264,-500.0,0.00017715,2]
[374373034,1753282161287,-200.0,0.00017715,2]
[374373035,1753282161307,-2770.8875318,0.0001785,2]
[374373036,1753282161327,-1012.81367927,0.0001785,2]
[374373037,1753282161349,-196.4183491,0.00018064,2]
[374373038,1753282161371,-156.4720611,0.00018101,2]
[374373039,1753282161394,-1588.6166431,0.00018181,2]
[374373079,1753282232598,-161.98457577,0.00018414,2]
[374373082,1753282232609,-300.0,0.00018489,2]
[374373084,1753282232618,-300.0,0.00018489,2]
[374373086,1753282232627,-300.0,0.00018489,2]
[374373087,1753282232636,-1200.0,0.00018489,2]
[374373089,1753282232646,-493.20542423,0.0001849,2]
[374373092,1753282232660,-5472.75493883,0.0001849,2]
[374373096,1753282232693,-318.84,0.0001849,2]
[374373097,1753282232705,-1035.66784917,0.0001849,2]
[374373162,1753282240053,-416.21698918,0.0001849,2]
[374373163,1753282240063,-156.4720611,0.0001859,2]
[374373164,1753282240073,-156.92999282,0.000188,2]
[374373165,1753282240083,-156.92999281,0.000188,2]
[374373166,1753282240093,-156.92999281,0.000188,2]
[374373167,1753282240103,-264.67770418,0.000189,2]
[374373168,1753282240112,-416.21698917,0.0001891,2]
[374373169,1753282240122,-1460.0,0.00018983,2]
[374373170,1753282240131,-437.31434943,0.00019077,2]
[374373171,1753282240141,-560.407,0.00019078,2]
[374373172,1753282240151,-156.4720611,0.00019078,2]
[374373173,1753282240161,-500.0,0.00019177,2]
[374373174,1753282240171,-500.0,0.00019177,2]
[374373175,1753282240181,-500.0,0.00019177,2]
[374373178,1753282240191,-500.0,0.00019177,2]
[374373179,1753282240200,-500.0,0.00019177,2]
[374373180,1753282240209,-500.0,0.00019177,2]
[374373181,1753282240219,-500.0,0.00019177,2]
[374373182,1753282240229,-500.0,0.00019177,2]
[374373183,1753282240239,-500.0,0.00019177,2]
[374373184,1753282240249,-500.0,0.00019177,2]
[374373185,1753282240261,-500.0,0.00019177,2]
[374373186,1753282240272,-269.35673657,0.00019177,2]
[374373187,1753282240282,-500.0,0.00019177,2]
[374373188,1753282240292,-500.0,0.00019177,2]
[374373189,1753282240302,-500.0,0.00019177,2]
[374373191,1753282240311,-500.0,0.00019177,2]
[374373193,1753282240321,-500.0,0.00019177,2]
[374373194,1753282240330,-500.0,0.00019177,2]
[374373195,1753282240339,-500.0,0.00019177,2]
[374373196,1753282240349,-500.0,0.00019177,2]
[374373197,1753282240359,-500.0,0.00019177,2]
[374373198,1753282240367,-500.0,0.00019177,2]
[374373199,1753282240377,-500.0,0.00019177,2]
[374373200,1753282240386,-500.0,0.00019177,2]
[374373201,1753282240395,-500.0,0.00019177,2]
[374373202,1753282240406,-500.0,0.00019177,2]
[374373204,1753282240415,-500.0,0.00019177,2]
[374373206,1753282240425,-500.0,0.00019177,2]
[374373208,1753282240435,-500.0,0.00019177,2]
[374373210,1753282240444,-500.0,0.00019177,2]
[374373212,1753282240453,-500.0,0.00019177,2]
[374373214,1753282240462,-500.0,0.00019177,2]
[374373216,1753282240472,-500.0,0.00019177,2]
[374373218,1753282240481,-500.0,0.00019177,2]
[374373220,1753282240491,-500.0,0.00019177,2]
[374373222,1753282240500,-460.0,0.00019178,2]
[374373224,1753282240509,-472.83720018,0.00019178,2]
[374373226,1753282240519,-569.02,0.00019178,2]
[374373228,1753282240528,-329.26982659,0.00019178,2]
[374373230,1753282240538,-578.88555706,0.00019178,2]
[374373232,1753282240547,-339.54906507,0.00019178,2]
[374373234,1753282240557,-461.09533867,0.00019178,2]
[374373236,1753282240567,-460.0,0.00019178,2]
[374373238,1753282240576,-460.0,0.00019178,2]
[374373240,1753282240586,-463.01182779,0.00019178,2]
[374373242,1753282240596,-460.0,0.00019178,2]
[374373244,1753282240605,-460.0,0.00019178,2]
[374373246,1753282240614,-335.7086775,0.00019178,2]
[374373248,1753282240624,-460.0,0.00019178,2]
[374373250,1753282240633,-460.0,0.00019178,2]
[374373252,1753282240642,-460.0,0.00019178,2]
[374373254,1753282240652,-460.0,0.00019178,2]
[374373256,1753282240661,-460.0,0.00019178,2]
[374373258,1753282240670,-460.0,0.00019178,2]
[374373260,1753282240680,-460.0,0.00019178,2]
[374373262,1753282240689,-460.0,0.00019178,2]
[374373265,1753282240699,-460.0,0.00019178,2]
[374373267,1753282240707,-460.0,0.00019178,2]
[374373270,1753282240719,-460.0,0.00019178,2]
[374373273,1753282240728,-460.0,0.00019178,2]
[374373276,1753282240738,-460.0,0.00019178,2]
[374373278,1753282240747,-460.0,0.00019178,2]
[374373280,1753282240757,-460.41625441,0.00019178,2]
[374373282,1753282240766,-460.0,0.00019178,2]
[374373284,1753282240775,-460.0,0.00019178,2]
[374373286,1753282240784,-438.18578649,0.00019178,2]
[374373288,1753282240795,-460.0,0.00019178,2]
[374373290,1753282240804,-460.0,0.00019178,2]
[374373292,1753282240813,-460.0,0.00019178,2]
[374373294,1753282240823,-460.0,0.00019178,2]
[374373296,1753282240832,-604.40798317,0.00019178,2]
[374373298,1753282240841,-460.0,0.00019178,2]
[374373300,1753282240851,-460.0,0.00019178,2]
[374373302,1753282240860,-460.0,0.00019178,2]
[374373304,1753282240870,-460.0,0.00019178,2]
[374373306,1753282240880,-460.0,0.00019178,2]
[374373308,1753282240890,-1003.87,0.00019178,2]
[374373310,1753282240899,-460.0,0.00019178,2]
[374373312,1753282240910,-460.0,0.00019178,2]
[374373314,1753282240919,-460.0,0.00019178,2]
[374373316,1753282240929,-254.92846591,0.00019178,2]
[374373318,1753282240939,-460.0,0.00019178,2]
[374373320,1753282240948,-460.0,0.00019178,2]
[374373322,1753282240957,-460.0,0.00019178,2]
[374373324,1753282240966,-460.0,0.00019178,2]
[374373326,1753282240975,-460.0,0.00019178,2]
[374373328,1753282240985,-460.0,0.00019178,2]
[374373330,1753282240994,-460.0,0.00019178,2]
[374373332,1753282241004,-460.0,0.00019178,2]
[374373334,1753282241013,-500.0,0.00019178,2]
[374373336,1753282241023,-460.0,0.00019178,2]
[374373338,1753282241032,-460.0,0.00019178,2]
[374373340,1753282241042,-1246.16,0.00019178,2]
[374373342,1753282241051,-605.04011904,0.00019178,2]
[374373344,1753282241061,-460.0,0.00019178,2]
[374373346,1753282241071,-460.0,0.00019178,2]
[374373348,1753282241080,-461.31996455,0.00019178,2]
[374373350,1753282241090,-460.2114241,0.00019178,2]
[374373352,1753282241100,-460.0,0.00019178,2]
[374373354,1753282241110,-460.0,0.00019178,2]
[374373356,1753282241119,-460.0,0.00019178,2]
[374373358,1753282241129,-460.0,0.00019178,2]
[374373360,1753282241137,-460.0,0.00019178,2]
[374373362,1753282241147,-460.0,0.00019178,2]
[374373364,1753282241162,-460.0,0.00019178,2]
[374373366,1753282241172,-460.0,0.00019178,2]
[374373368,1753282241181,-465.49053133,0.00019178,2]
[374373370,1753282241191,-460.0,0.00019178,2]
[374373372,1753282241200,-460.0,0.00019178,2]
[374373374,1753282241210,-460.0,0.00019178,2]
[374373376,1753282241219,-460.0,0.00019178,2]
[374373378,1753282241229,-460.0,0.00019178,2]
[374373380,1753282241238,-460.0,0.00019178,2]
[374373382,1753282241248,-460.0,0.00019178,2]
[374373384,1753282241258,-460.0,0.00019178,2]
[374373386,1753282241267,-460.0,0.00019178,2]
[374373388,1753282241276,-460.0,0.00019178,2]
[374373390,1753282241286,-460.0,0.00019178,2]
[374373392,1753282241295,-460.0,0.00019178,2]
[374373394,1753282241304,-460.0,0.00019178,2]
[374373396,1753282241314,-460.0,0.00019178,2]
[374373398,1753282241323,-460.0,0.00019178,2]
[374373400,1753282241333,-460.0,0.00019178,2]
[374373402,1753282241343,-460.26180789,0.00019178,2]
[374373404,1753282241353,-460.0,0.00019178,2]
[374373406,1753282241364,-460.0,0.00019178,2]
[374373408,1753282241374,-460.0,0.00019178,2]
[374373411,1753282241383,-460.0,0.00019178,2]
[374373413,1753282241393,-460.0,0.00019178,2]
[374373415,1753282241406,-460.0,0.00019178,2]
[374373416,1753282241416,-460.0,0.00019178,2]
[374373418,1753282241425,-460.0,0.00019178,2]
[374373420,1753282241435,-541.06639915,0.00019178,2]
[374373423,1753282241445,-460.0,0.00019178,2]
[374373425,1753282241455,-560.7864555,0.00019178,2]
[374373427,1753282241465,-511.02905618,0.00019178,2]
[374373429,1753282241474,-460.0,0.00019178,2]
[374373431,1753282241484,-460.0,0.00019178,2]
[374373432,1753282241494,-460.0,0.00019178,2]
[374373435,1753282241504,-463.2930676,0.00019178,2]
[374373437,1753282241513,-460.0,0.00019178,2]
[374373439,1753282241523,-460.0,0.00019178,2]
[374373441,1753282241532,-463.94729004,0.00019178,2]
[374373443,1753282241542,-517.6822895,0.00019178,2]
[374373444,1753282241551,-460.0,0.00019178,2]
[374373447,1753282241561,-460.0,0.00019178,2]
[374373448,1753282241571,-463.12952971,0.00019178,2]
[374373450,1753282241580,-460.0,0.00019178,2]
[374373453,1753282241589,-460.0,0.00019178,2]
[374373455,1753282241599,-460.0,0.00019178,2]
[374373457,1753282241608,-460.0,0.00019178,2]
[374373459,1753282241618,-463.91738592,0.00019178,2]
[374373461,1753282241628,-460.0,0.00019178,2]
[374373462,1753282241637,-460.0,0.00019178,2]
[374373465,1753282241647,-460.0,0.00019178,2]
[374373481,1753282241797,-460.0,0.00019178,2]
[374373483,1753282241808,-460.0,0.00019178,2]
[374373485,1753282241818,-285.69965024,0.00019178,2]
[374373487,1753282241827,-460.0,0.00019178,2]
[374373489,1753282241837,-460.0,0.00019178,2]
[374373491,1753282241847,-155.94204301,0.00019178,2]
[374373493,1753282241856,-460.0,0.00019178,2]
[374373495,1753282241866,-460.0,0.00019178,2]
[374373497,1753282241875,-490.61039705,0.00019178,2]
[374373499,1753282241886,-462.00714888,0.00019178,2]
[374373501,1753282241896,-460.0,0.00019178,2]
[374373503,1753282241905,-460.0,0.00019178,2]
[374373505,1753282241915,-500.0,0.00019178,2]
[374373507,1753282241925,-460.0,0.00019178,2]
[374373508,1753282241934,-460.0,0.00019178,2]
[374373511,1753282241944,-460.0,0.00019178,2]
[374373513,1753282241953,-322.87988812,0.00019178,2]
[374373515,1753282241964,-460.0,0.00019178,2]
[374373517,1753282241973,-460.0,0.00019178,2]
[374373519,1753282241983,-460.0,0.00019178,2]
[374373521,1753282241992,-501.53855183,0.00019178,2]
[374373523,1753282242002,-460.0,0.00019178,2]
[374373525,1753282242011,-552.50594142,0.00019178,2]
[374373527,1753282242020,-460.0,0.00019178,2]
[374373529,1753282242030,-460.0,0.00019178,2]
[374373531,1753282242040,-460.0,0.00019178,2]
[374373533,1753282242049,-460.0,0.00019178,2]
[374373535,1753282242059,-460.0,0.00019178,2]
[374373537,1753282242068,-460.0,0.00019178,2]
[374373539,1753282242078,-472.55883697,0.00019178,2]
[374373541,1753282242087,-460.0,0.00019178,2]
[374373543,1753282242097,-460.0,0.00019178,2]
[374373545,1753282242107,-460.0,0.00019178,2]
[374373547,1753282242116,-460.0,0.00019178,2]
[374373549,1753282242125,-466.65095932,0.00019178,2]
[374373551,1753282242135,-460.80743503,0.00019178,2]
[374373553,1753282242144,-460.0,0.00019178,2]
[374373555,1753282242155,-460.0,0.00019178,2]
[374373557,1753282242164,-460.0,0.00019178,2]
[374373559,1753282242174,-3147.97,0.00019178,2]
[374373561,1753282242183,-460.0,0.00019178,2]
[374373563,1753282242193,-460.0,0.00019178,2]
[374373565,1753282242202,-212.58,0.00019178,2]
[374373567,1753282242211,-460.0,0.00019178,2]
[374373569,1753282242221,-460.0,0.00019178,2]
[374373571,1753282242231,-460.0,0.00019178,2]
[374373573,1753282242240,-460.0,0.00019178,2]
[374373575,1753282242249,-460.0,0.00019178,2]
[374373577,1753282242259,-460.0,0.00019178,2]
[374373579,1753282242268,-631.17,0.00019178,2]
[374373581,1753282242278,-460.0,0.00019178,2]
[374373583,1753282242287,-460.0,0.00019178,2]
[374373585,1753282242297,-826.01,0.00019178,2]
[374373587,1753282242307,-460.0,0.00019178,2]
[374373589,1753282242316,-460.0,0.00019178,2]
[374373591,1753282242326,-460.66124518,0.00019178,2]
[374373593,1753282242336,-460.0,0.00019178,2]
[374373595,1753282242345,-460.0,0.00019178,2]
[374373597,1753282242356,-460.0,0.00019178,2]
[374373599,1753282242365,-180.314825,0.00019178,2]
[374373601,1753282242377,-3339.05262816,0.00019329,2]
[374373603,1753282242386,-150.0,0.00019329,2]
[374373605,1753282242395,-416.21698917,0.00019329,2]
[374373607,1753282242405,-8156.20782965,0.00019329,2]
[374373609,1753282242415,-459.19,0.00019342,3]
[374373611,1753282242425,-229.6,0.00019342,3]
[374373613,1753282242434,-688.82,0.00019342,3]
[374373615,1753282242443,-237759.99990986,0.00019352,2]
[374373629,1753282242563,-55217.37060687,0.00019352,2]
[374373637,1753282242626,-450.33735195,0.00019352,2]
[374373835,1753282244190,-740.63725265,0.00019352,2]
[374373836,1753282244199,-6343.76801336,0.00019352,2]
[374373837,1753282244211,-699.92165502,0.00019352,2]
[374374103,1753282246931,-460.0,0.00019178,2]
[374374105,1753282246940,-3787.59456093,0.00019352,2]
[374374129,1753282247159,-65741.00790201,0.00019352,2]
[374374131,1753282247168,-569.02,0.00019452,2]
[374374132,1753282247178,-460.0,0.00019452,2]
[374374135,1753282247187,-460.0,0.00019452,2]
[374374137,1753282247197,-460.0,0.00019452,2]
[374374139,1753282247207,-573.24105519,0.00019452,2]
[374374140,1753282247216,-460.0,0.00019452,2]
[374374142,1753282247225,-1003.87,0.00019452,2]
[374374144,1753282247235,-462.5522571,0.00019452,2]
[374374146,1753282247244,-1246.16,0.00019452,2]
[374374148,1753282247255,-543.55782187,0.00019452,2]
[374374151,1753282247266,-460.0,0.00019452,2]
[374374152,1753282247276,-460.0,0.00019452,2]
[374374154,1753282247285,-460.0,0.00019452,2]
[374374157,1753282247295,-387.26,0.00019452,2]
[374374159,1753282247305,-460.0,0.00019452,2]
[374374161,1753282247314,-460.0,0.00019452,2]
[374374162,1753282247323,-460.0,0.00019452,2]
[374374165,1753282247333,-460.0,0.00019452,2]
[374374167,1753282247342,-460.0,0.00019452,2]
[374374169,1753282247357,-460.0,0.00019452,2]
[374374171,1753282247366,-202.43,0.00019452,2]
[374374173,1753282247376,-460.0,0.00019452,2]
[374374175,1753282247385,-461.29245081,0.00019452,2]
[374374177,1753282247395,-460.0,0.00019452,2]
[374374179,1753282247403,-460.0,0.00019452,2]
[374374181,1753282247414,-460.0,0.00019452,2]
[374374182,1753282247424,-599.00652439,0.00019452,2]
[374374184,1753282247433,-460.0,0.00019452,2]
[374374186,1753282247442,-577.89160844,0.00019452,2]
[374374188,1753282247452,-460.0,0.00019452,2]
[374374191,1753282247462,-460.0,0.00019452,2]
[374374193,1753282247471,-315.71038305,0.00019452,2]
[374374194,1753282247481,-460.0,0.00019452,2]
[374374197,1753282247492,-462.89057048,0.00019452,2]
[374374199,1753282247502,-460.0,0.00019452,2]
[374374201,1753282247511,-460.0,0.00019452,2]
[374374203,1753282247520,-460.0,0.00019452,2]
[374374205,1753282247530,-460.0,0.00019452,2]
[374374206,1753282247540,-463.86158314,0.00019452,2]
[374374209,1753282247551,-469.14110224,0.00019452,2]
[374374210,1753282247562,-190.19541528,0.00019452,2]
[374374213,1753282247572,-460.0,0.00019452,2]
[374374214,1753282247581,-460.0,0.00019452,2]
[374374217,1753282247591,-460.0,0.00019452,2]
[374374218,1753282247600,-460.0,0.00019452,2]
[374374221,1753282247609,-460.0,0.00019452,2]
[374374223,1753282247619,-3147.97,0.00019452,2]
[374374224,1753282247629,-460.0,0.00019452,2]
[374374227,1753282247640,-460.0,0.00019452,2]
[374374229,1753282247649,-460.0,0.00019452,2]
[374374231,1753282247659,-631.17,0.00019452,2]
[374374233,1753282247669,-826.01,0.00019452,2]
[374374235,1753282247678,-160.0,0.00019453,2]
[374374237,1753282247687,-569.02,0.00019726,2]
[374374239,1753282247697,-460.0,0.00019726,2]
[374374241,1753282247707,-460.0,0.00019726,2]
[374374243,1753282247719,-1003.87,0.00019726,2]
[374374244,1753282247730,-1246.16,0.00019726,2]
[374374246,1753282247739,-580.38,0.00019726,2]
[374374249,1753282247749,-464.89243476,0.00019726,2]
[374374250,1753282247759,-460.0,0.00019726,2]
[374374253,1753282247768,-460.0,0.00019726,2]
[374374255,1753282247778,-460.0,0.00019726,2]
[374374257,1753282247787,-460.0,0.00019726,2]
[374374259,1753282247799,-3147.97,0.00019726,2]
[374374260,1753282247808,-460.0,0.00019726,2]
[374374263,1753282247818,-460.0,0.00019726,2]
[374374265,1753282247828,-631.17,0.00019726,2]
[374374267,1753282247837,-826.01,0.00019726,2]
[374374269,1753282247846,-437.31434938,0.00019953,2]
[374374271,1753282247855,-569.02,0.0002,2]
[374374272,1753282247865,-460.0,0.0002,2]
[374374274,1753282247874,-460.0,0.0002,2]
[374374277,1753282247884,-1003.87,0.0002,2]
[374374278,1753282247893,-1246.16,0.0002,2]
[374374281,1753282247903,-460.0,0.0002,2]
[374374283,1753282247913,-3147.97,0.0002,2]
[374374285,1753282247923,-631.17,0.0002,2]
[374374286,1753282247932,-826.01,0.0002,2]
[374374288,1753282247941,-260.0,0.00020001,2]
[374374290,1753282247950,-420.0,0.00020164,2]
[374374292,1753282247960,-440.356289,0.00020187,2]
[374374294,1753282247969,-150.0,0.00020249,2]
[374374296,1753282247979,-1680.0,0.00020262,2]
[374374298,1753282247988,-569.02,0.00020273,2]
[374374300,1753282247998,-352.84027876,0.00020273,2]
[374374302,1753282248007,-460.0,0.00020273,2]
[374374304,1753282248017,-1003.87,0.00020273,2]
[374374306,1753282248026,-1246.16,0.00020273,2]
[374374308,1753282248035,-460.0,0.00020273,2]
[374374310,1753282248044,-3147.97,0.00020273,2]
[374374312,1753282248054,-631.17,0.00020273,2]
[374374314,1753282248063,-826.01,0.00020273,2]
[374374316,1753282248072,-569.02,0.00020547,2]
[374374318,1753282248082,-460.0,0.00020547,2]
[374374320,1753282248091,-1003.87,0.00020547,2]
[374374323,1753282248102,-1246.16,0.00020547,2]
[374374325,1753282248112,-460.0,0.00020547,2]
[374374327,1753282248121,-3147.97,0.00020547,2]
[374374329,1753282248130,-631.17,0.00020547,2]
[374374331,1753282248140,-826.01,0.00020547,2]
[374374333,1753282248150,-360.0,0.00020549,2]
[374374335,1753282248163,-160.0,0.00020687,2]
[374374337,1753282248173,-160.0,0.00020687,2]
[374374339,1753282248182,-160.0,0.00020687,2]
[374374341,1753282248192,-214.67886746,0.00020691,2]
[374374343,1753282248201,-160.0,0.00020691,2]
[374374345,1753282248211,-160.0,0.00020691,2]
[374374347,1753282248220,-231.11583447,0.00020691,2]
[374374349,1753282248231,-215.84326551,0.00020691,2]
[374374351,1753282248240,-840.06856235,0.00020691,2]
[374374353,1753282248249,-160.0,0.00020691,2]
[374374355,1753282248259,-12622.36869388,0.00020691,2]
[374374357,1753282248268,-918.38,0.00020712,3]
[374374359,1753282248277,-459.2,0.00020712,3]
[374374361,1753282248289,-740.63725261,0.00020714,2]
[374374363,1753282248299,-569.02,0.00020821,2]
[374374365,1753282248309,-460.0,0.00020821,2]
[374374367,1753282248318,-1003.87,0.00020821,2]
[374374369,1753282248328,-1246.16,0.00020821,2]
[374374371,1753282248338,-460.0,0.00020821,2]
[374374386,1753282248471,-3147.97,0.00020821,2]
[374374389,1753282248487,-631.17,0.00020821,2]
[374374391,1753282248498,-826.01,0.00020821,2]
[374374393,1753282248508,-437.31434938,0.00020829,2]
[374374395,1753282248518,-569.02,0.00021095,2]
[374374397,1753282248528,-460.0,0.00021095,2]
[374374399,1753282248538,-1003.87,0.00021095,2]
[374374401,1753282248548,-1246.16,0.00021095,2]
[374374403,1753282248557,-498.23653331,0.00021095,2]
[374374405,1753282248567,-3147.97,0.00021095,2]
[374374407,1753282248576,-631.17,0.00021095,2]
[374374409,1753282248586,-826.01,0.00021095,2]
[374374411,1753282248596,-460.0,0.00021096,2]
[374374413,1753282248607,-150.0,0.0002117,2]
[374374415,1753282248617,-500.0,0.00021264,2]
[374374417,1753282248626,-569.02,0.00021369,2]
[374374419,1753282248637,-587.96,0.00021369,2]
[374374421,1753282248646,-1003.87,0.00021369,2]
[374374423,1753282248657,-1246.16,0.00021369,2]
[374374425,1753282248668,-3147.97,0.00021369,2]
[374374427,1753282248678,-631.17,0.00021369,2]
[374374429,1753282248689,-826.01,0.00021369,2]
[374374431,1753282248700,-928.4,0.00021536,5]
[374374433,1753282248709,-569.02,0.00021643,2]
[374374435,1753282248722,-1003.87,0.00021643,2]
[374374437,1753282248732,-1246.16,0.00021643,2]
[374374439,1753282248742,-3147.97,0.00021643,2]
[374374441,1753282248751,-631.17,0.00021643,2]
[374374443,1753282248762,-826.01,0.00021643,2]
[374374445,1753282248773,-560.0,0.00021644,2]